{"text_format":"1","workbook":"xlsx","n_sheets":3,"sheets":["mondaa","gdwl","ورقة1"],"not_rendered":{"charts":0,"images":0,"macros":1,"external_links":1,"defined_names":13,"comments":0,"pivot_tables":0},"unopened":[],"bounds":{"document_bytes":16777216,"sheet_cells":100000,"rows_first":2000,"rows_last":500,"rows_between":2000,"halvings":0,"cell_chars":16384,"cell_head_chars":4096},"cells_cut":0,"cells_raw":0,"read":"whole","date_system":"1900"}

{"sheet":"mondaa","index":0,"n_rows":23,"n_cols":31,"rows_kept":23,"cut":false,"hidden":false,"merged":[[12,26,12,30],[0,26,0,30]]}
[null,null,null,null,null,null,null,null,null,null,null,null,null,null,null,null,null,null,null,null,null,null,null,null,null,null,{"$f":"IFERROR(\"جدول امتحان\"&\" \"&$A$10,\" \")","v":"جدول امتحان "}]
[null,null,null,null,null,null,null,null,null,null,null,null,null,null,null,null,null,null,null,null,null,null,null,null,null,null,"اليوم","التاريخ","المادة","من","إلى"]
[null,null,null,null,null,null,null,null,null,null,null,null,null,null,null,null,null,null,null,null,null,null,null,null,null,null,"السبت","2018-05-12","رياضيات",12,12]
[null,null,null,null,null,null,null,null,null,null,null,null,null,null,null,null,null,null,null,null,null,null,null,null,null,null,"الاحد",null,"اللغة العربية",1,2]
[null,null,null,null,null,null,null,null,null,null,null,null,null,null,null,null,null,null,null,null,null,null,null,null,null,null,"الإثنين",null,"اللغة العربية",1,2]
[null,null,null,null,null,null,null,null,null,null,null,null,null,null,null,null,null,null,null,null,null,null,null,null,null,null,"الثلاثاء",null,"اللغة العربية",1,2]
[null,null,null,null,null,null,null,null,null,null,null,null,null,null,null,null,null,null,null,null,null,null,null,null,null,null,"الأربعاء",null,"fgf",1,2]
[null,null,null,null,null,null,null,null,null,null,null,null,null,null,null,null,null,null,null,null,null,null,null,null,null,null,"الخميس",null,"gf",1,2]
[null,null,null,null,null,null,null,null,null,null,null,null,null,null,null,null,null,null,null,null,null,null,null,null,null,null,"الجمعة",null,"jhjhj",1,2]
[null,null,null,null,null,null,null,null,null,null,null,null,null,null,null,null,null,null,null,null,null,null,null,null,null,null,"السبت",null,"gf",1,2]
[null,null,null,null,null,null,null,null,null,null,null,null,null,null,null,null,null,null,null,null,null,null,null,null,null,null,"الأحد",null,"fgf",1,2]
[]
[null,null,null,null,null,null,null,null,null,null,null,null,null,null,null,null,null,null,null,null,null,null,null,null,null,null,{"$f":"IFERROR(\"جدول امتحان\"&\" \"&$A$10,\" \")","v":"جدول امتحان "}]
[null,null,null,null,null,null,null,null,null,null,null,null,null,null,null,null,null,null,null,null,null,null,null,null,null,null,"اليوم","التاريخ","المادة","من","إلى"]
[null,null,null,null,null,null,null,null,null,null,null,null,null,null,null,null,null,null,null,null,null,null,null,null,null,null,"السبت","2018-05-12","gf",12,12]
[null,null,null,null,null,null,null,null,null,null,null,null,null,null,null,null,null,null,null,null,null,null,null,null,null,null,"الاحد","2018-05-13","gf",1,2]
[null,null,null,null,null,null,null,null,null,null,null,null,null,null,null,null,null,null,null,null,null,null,null,null,null,null,"الإثنين","2018-05-14","gf",1,2]
[null,null,null,null,null,null,null,null,null,null,null,null,null,null,null,null,null,null,null,null,null,null,null,null,null,null,"الثلاثاء","2018-05-15","gf",1,2]
[null,null,null,null,null,null,null,null,null,null,null,null,null,null,null,null,null,null,null,null,null,null,null,null,null,null,"الأربعاء","2018-05-16","gf",1,2]
[null,null,null,null,null,null,null,null,null,null,null,null,null,null,null,null,null,null,null,null,null,null,null,null,null,null,"الخميس","2018-05-17","gf",1,2]
[null,null,null,null,null,null,null,null,null,null,null,null,null,null,null,null,null,null,null,null,null,null,null,null,null,null,"الجمعة","2018-05-18","jhjhj",1,2]
[null,null,null,null,null,null,null,null,null,null,null,null,null,null,null,null,null,null,null,null,null,null,null,null,null,null,"السبت","2018-05-19","gf",1,2]
[null,null,null,null,null,null,null,null,null,null,null,null,null,null,null,null,null,null,null,null,null,null,null,null,null,null,"الأحد","2018-05-20","fgf",1,2]

{"sheet":"gdwl","index":1,"n_rows":51,"n_cols":10,"rows_kept":51,"cut":false,"hidden":false,"merged":[[40,4,40,8],[41,9,50,9],[42,2,42,3],[43,2,44,3],[45,2,46,2],[45,3,46,3],[47,2,48,2],[47,3,48,3],[49,2,50,2],[49,3,50,3],[27,4,27,8],[28,9,37,9],[29,2,29,3],[30,2,31,3],[32,2,33,2],[32,3,33,3],[34,2,35,2],[34,3,35,3],[36,2,37,2],[36,3,37,3],[9,0,12,0],[10,2,11,2],[10,3,11,3],[14,4,14,8],[15,9,24,9],[16,2,16,3],[17,2,18,3],[19,2,20,2],[19,3,20,3],[21,2,22,2],[13,0,18,0],[21,3,22,3],[23,2,24,2],[23,3,24,3],[1,4,1,8],[2,9,11,9],[3,2,3,3],[4,2,5,3],[6,2,7,2],[6,3,7,3],[8,2,9,2],[8,3,9,3]]}
[]
[null,null,"ادارة ","حلوان",{"$f":"IFERROR(\"جدول امتحان\"&\" \"&$A$10,\" \")","v":"جدول امتحان 0"},null,null,null,null,37]
[null,null,"مدرسة","النور","اليوم","التاريخ","المادة","من","إلى","ممنوع إحضار التليفون المحمول داخل اللجان"]
[null,null,"اسم الطالب",null,"السبت","2018-05-12","gf",12,12]
[null,null,{"$f":"IFERROR(VLOOKUP(J2,mondaa!$T$6:$Y$1503,3,FALSE),\"\")","v":""},null,"الاحد","2018-05-13","gf",1,2]
[null,null,null,null,"الإثنين","2018-05-14","gf",1,2]
[null,null,"رقم الجلوس ",{"$f":"IFERROR(VLOOKUP(J2,mondaa!$T$6:$Y$1503,2,FALSE),\"\")","v":""},"الثلاثاء","2018-05-15","gf",1,2]
[null,null,null,{"$f":"IFERROR(VLOOKUP(B5,mondaa!$T$6:$Y$1503,2,FALSE),\"\")","v":""},"الأربعاء","2018-05-16","gf",1,2]
[null,null,"رقم اللجنة",{"$f":"IFERROR(VLOOKUP(J2,mondaa!$T$6:$Y$1503,6,FALSE),\"\")","v":""},"الخميس","2018-05-17","gf",1,2]
[{"$f":"mondaa!$A$18","v":0},null,null,{"$f":"IFERROR(VLOOKUP(B5,mondaa!$T$6:$Y$1503,6,FALSE),\"\")","v":""},"الجمعة","2018-05-18","jhjhj",1,2]
[null,null,"مدير المدرسة ","أ / احمد","السبت","2018-05-19","gf",1,2]
[null,null,null,null,"الأحد","2018-05-20","fgf",1,2]
[]
[2]
[null,null,"ادارة ","حلوان",{"$f":"E2","v":"جدول امتحان 0"},null,null,null,null,{"$f":"J2+1","v":38}]
[null,null,"مدرسة","النور","اليوم","التاريخ","المادة","من","إلى",{"$f":"$J$3","v":"ممنوع إحضار التليفون المحمول داخل اللجان"}]
[null,null,"اسم الطالب",null,"السبت","2018-05-12","gf",12,12]
[null,null,{"$f":"IFERROR(VLOOKUP(J15,mondaa!$T$6:$Y$1503,3,FALSE),\"\")","v":""},null,"الاحد","2018-05-13","gf",1,2]
[null,null,null,null,"الإثنين","2018-05-14","gf",1,2]
[null,null,"رقم الجلوس ",{"$f":"IFERROR(VLOOKUP(J15,mondaa!$T$6:$Y$1503,2,FALSE),\"\")","v":""},"الثلاثاء","2018-05-15","gf",1,2]
[null,null,null,{"$f":"IFERROR(VLOOKUP(B18,mondaa!$T$6:$Y$1503,2,FALSE),\"\")","v":""},"الأربعاء","2018-05-16","gf",1,2]
[null,null,"رقم اللجنة",{"$f":"IFERROR(VLOOKUP(J15,mondaa!$T$6:$Y$1503,6,FALSE),\"\")","v":""},"الخميس","2018-05-17","gf",1,2]
[null,null,null,{"$f":"IFERROR(VLOOKUP(B18,mondaa!$T$6:$Y$1503,6,FALSE),\"\")","v":""},"الجمعة","2018-05-18","jhjhj",1,2]
[null,null,"مدير المدرسة ","أ / احمد","السبت","2018-05-19","gf",1,2]
[null,null,null,null,"الأحد","2018-05-20","fgf",1,2]
[]
[]
[null,null,"ادارة ","حلوان",{"$f":"E2","v":"جدول امتحان 0"},null,null,null,null,{"$f":"J15+1","v":39}]
[null,null,"مدرسة","النور","اليوم","التاريخ","المادة","من","إلى",{"$f":"$J$3","v":"ممنوع إحضار التليفون المحمول داخل اللجان"}]
[null,null,"اسم الطالب",null,"السبت","2018-05-12","gf",12,12]
[null,null,{"$f":"IFERROR(VLOOKUP(J28,mondaa!$T$6:$Y$1503,3,FALSE),\"\")","v":""},null,"الاحد","2018-05-13","gf",1,2]
[null,null,null,null,"الإثنين","2018-05-14","gf",1,2]
[null,null,"رقم الجلوس ",{"$f":"IFERROR(VLOOKUP(J28,mondaa!$T$6:$Y$1503,2,FALSE),\"\")","v":""},"الثلاثاء","2018-05-15","gf",1,2]
[null,null,null,{"$f":"IFERROR(VLOOKUP(B31,mondaa!$T$6:$Y$1503,2,FALSE),\"\")","v":""},"الأربعاء","2018-05-16","gf",1,2]
[null,null,"رقم اللجنة",{"$f":"IFERROR(VLOOKUP(J28,mondaa!$T$6:$Y$1503,6,FALSE),\"\")","v":""},"الخميس","2018-05-17","gf",1,2]
[null,null,null,{"$f":"IFERROR(VLOOKUP(B31,mondaa!$T$6:$Y$1503,6,FALSE),\"\")","v":""},"الجمعة","2018-05-18","jhjhj",1,2]
[null,null,"مدير المدرسة ","أ / احمد","السبت","2018-05-19","gf",1,2]
[null,null,null,null,"الأحد","2018-05-20","fgf",1,2]
[]
[]
[null,null,"ادارة ","حلوان",{"$f":"E2","v":"جدول امتحان 0"},null,null,null,null,{"$f":"J28+1","v":40}]
[null,null,"مدرسة","النور","اليوم","التاريخ","المادة","من","إلى",{"$f":"$J$3","v":"ممنوع إحضار التليفون المحمول داخل اللجان"}]
[null,null,"اسم الطالب",null,"السبت","2018-05-12","gf",12,12]
[null,null,{"$f":"IFERROR(VLOOKUP(J41,mondaa!$T$6:$Y$1503,3,FALSE),\"\")","v":""},null,"الاحد","2018-05-13","gf",1,2]
[null,null,null,null,"الإثنين","2018-05-14","gf",1,2]
[null,null,"رقم الجلوس ",{"$f":"IFERROR(VLOOKUP(J41,mondaa!$T$6:$Y$1503,2,FALSE),\"\")","v":""},"الثلاثاء","2018-05-15","gf",1,2]
[null,null,null,{"$f":"IFERROR(VLOOKUP(B44,mondaa!$T$6:$Y$1503,2,FALSE),\"\")","v":""},"الأربعاء","2018-05-16","gf",1,2]
[null,null,"رقم اللجنة",{"$f":"IFERROR(VLOOKUP(J41,mondaa!$T$6:$Y$1503,6,FALSE),\"\")","v":""},"الخميس","2018-05-17","gf",1,2]
[null,null,null,{"$f":"IFERROR(VLOOKUP(B44,mondaa!$T$6:$Y$1503,6,FALSE),\"\")","v":""},"الجمعة","2018-05-18","jhjhj",1,2]
[null,null,"مدير المدرسة ","أ / احمد","السبت","2018-05-19","gf",1,2]
[null,null,null,null,"الأحد","2018-05-20","fgf",1,2]

{"sheet":"ورقة1","index":2,"n_rows":0,"n_cols":0,"rows_kept":0,"cut":false,"hidden":false,"merged":[]}